Cogmind - Beta 10.2 @@@ ROGUE MODE // 2021.04.12 @ 14:05:55 Player: ChromeKnight Result: Destroyed by G-34 Mercenary with Small Laser Performance ------------- Evolutions (1) 500 Regions Visited (3) 600 Robots Destroyed (38) 190 Value Destroyed (1127) 1127 Prototype IDs (4) 80 Alien Tech Used (0) 0 Bonus (8) 8 TOTAL SCORE: 2505 Bonus ------- High Alert Combat Kills 8 Cogmind --------- Core Integrity 0/400 Matter 292/300 Energy 123/125 System Corruption 9% Temperature Cool (8) Movement Hovering (116) Ox1 Location -9/Storage Parts ------- > --- POWER (3) -------- Light Ion Engine > --- PROPULSION (2) --- Hover Unit Hover Unit > --- UTILITY (2) ------ Large Storage Unit > --- WEAPON (2) ------- (None) > --- INVENTORY (10) --- Light Nuclear Core Light Nuclear Core Hover Unit Hover Unit Hover Unit Heat Sink High-capacity Matter Pod (200) Datajack Peak State ------------ > --- POWER ------------ Improved Ion Engine Cooled Ion Engine > --- PROPULSION ------- Improved Aluminum Leg Improved Aluminum Leg > --- UTILITY ---------- Large Storage Unit Targeting Computer > --- WEAPON ----------- Guided Missile Launcher > --- INVENTORY -------- Light Nuclear Core Light Nuclear Core Hover Unit Hover Unit Hover Unit Hover Unit Hover Unit Heat Sink High-capacity Matter Pod Datajack [Rating: 22] Favorites ----------- Power Improved Ion Engine Engine Improved Ion Engine Propulsion Improved Aluminum Leg Leg Improved Aluminum Leg Wheel Compact Wheel Hover Unit Hover Unit Utility Large Storage Unit Device Drone Bay Storage Large Storage Unit Processor Targeting Computer Weapon Light Assault Rifle Energy Gun Improved EM Shotgun Energy Cannon Advanced Beam Cannon Ballistic Gun Light Assault Rifle Launcher Mini Grenade Launcher Build | -11 -10 -9 -9 ------- Run | Scr Mat Mat Sto Slots Evolved 2 | . . 2 . Power 2 | . . 2 . Propulsion . | . . . . Utility . | . . . . Weapon . | . . . . Parts Attached 37 | 6 6 14 11 Power 6 | 1 . 3 2 Engine 6 | 1 . 3 2 Core . | . . . . Reactor . | . . . . Propulsion 10 | 2 4 2 2 Treads . | . . . . Leg 6 | . 4 2 . Wheel 2 | 2 . . . Hover 2 | . . . 2 Flight . | . . . . Utility 5 | 1 2 . 2 Device 2 | . . . 2 Storage 2 | 1 1 . . Processor 1 | . 1 . . Hackware . | . . . . Protection . | . . . . Artifact . | . . . . Weapon 16 | 2 . 9 5 Energy Gun 6 | . . 3 3 Energy Cannon 2 | . . 2 . Ballistic Gun 4 | 2 . 2 . Ballistic Cannon . | . . . . Launcher 4 | . . 2 2 Special Weapon . | . . . . Impact Weapon . | . . . . Slashing Weapon . | . . . . Piercing Weapon . | . . . . Special Melee Weapon . | . . . . Unidentified Prototypes 4 | . . 3 1 Parts Lost 14 | . 1 7 6 Power 2 | . . 1 1 Propulsion 3 | . 1 . 2 Utility 1 | . . . 1 Weapon 8 | . . 6 2 Highest Loss Streak 4 | . 1 4 3 Average Slot Usage (%) 79 | . 86 83 72 Engine 19 | . 14 19 23 Leg 17 | . 19 22 13 Wheel 1 | . 5 . . Storage 12 | . 16 11 11 Processor 4 | . 1 11 3 Energy Gun 10 | . . 6 18 Ballistic Gun 10 | . 28 8 . Launcher 1 | . . 4 . Naked Turns . | . . . . Heaviest Build 43 | 11 27 40 43 Greatest Support 26 | 26 26 26 26 Greatest Overweight (x) 12 | . 2 1 12 Average Overweight (x) . | . . . 1 Largest Inventory Capacity 12 | 6 12 10 10 Average Capacity 9 | 4 8 10 10 Most Carried 10 | 2 10 10 10 Average Carried 8 | . 6 9 9 Final Capacity 10 | 6 10 10 10 Final Carried 10 | 1 10 9 8 Class Distribution -------------------- 100% | Mutant Dominant Class ---------------- Mutant | -10/Materials Mutant | -9/Materials Mutant | -9/Storage Resources | -11 -10 -9 -9 ----------- Run | Scr Mat Mat Sto Matter Collected 965 | 227 124 399 215 Remotely . | . . . . Salvage Created 1240 | . 227 633 380 Parts 78 | . 13 38 27 Haulers Intercepted 1 | . . 1 . Recyclers Shooed 2 | . 2 . . Parts Field Recycled . | . . . . Retrieved Matter . | . . . . Parts Self-Destructed . | . . . . Prevented . | . . . . Kills | -11 -10 -9 -9 ------- Run | Scr Mat Mat Sto Combat Hostiles Destroyed 29 | . 5 14 10 Guns 18 | . 5 7 6 AOE 10 | . . 7 3 Classes Destroyed 10 | . 2 6 2 Worker 1 | . . 1 . Builder 2 | . . 2 . Hauler 1 | . . 1 . Recycler 2 | . . 2 . Operator 1 | . . 1 . Watcher 2 | . 1 . 1 Swarmer 3 | . . . 3 Grunt 20 | . 5 12 3 Duelist 1 | . . . 1 Sentry 5 | . . 2 3 Best Kill Streak 8 | . 3 8 3 Combat Bots Only 4 | . 3 4 3 Max Kills in Single Turn 3 | . 1 3 2 Gunslinging . | . . . . Exploded 2 | . . 2 2 Melee . | . . . . Uniques/NPCs Destroyed . | . . . . Combat | -11 -10 -9 -9 -------- Run | Scr Mat Mat Sto Damage Taken 1806 | . 305 763 738 Core 453 | . 44 205 204 Absorbed by Shields . | . . . . Core Remaining (%) 91 | 100 82 . . Volleys Fired 85 | . 29 36 20 Largest 2 | . 2 2 2 Hottest 130 | . 40 130 90 Shots Fired 150 | . 58 54 38 Gun 139 | . 58 45 36 Cannon . | . . . . Launcher 11 | . . 9 2 Special . | . . . . Kinetic 83 | . 58 25 . Thermal 20 | . . 20 . Explosive 11 | . . 9 2 Electromagnetic 36 | . . . 36 Robot Hit Streak 14 | . 8 13 14 Robot Miss Streak 6 | . 3 4 6 Penetration Max . | . . . . Secondary Targets . | . . . . Shots Hit Robots 111 | . 40 44 27 Core Hits 81 | . 21 43 17 Critical Hits . | . . . . Critical Kills . | . . . . Critical Parts Destroyed . | . . . . Melee Attacks . | . . . . Impact . | . . . . Slashing . | . . . . Piercing . | . . . . Sneak Attacks . | . . . . Combat Hostiles . | . . . . Follow-up Attacks . | . . . . Damage Inflicted 2185 | . 308 1366 511 Guns 1074 | . 308 412 354 Cannons . | . . . . Explosions 1109 | . . 952 157 Melee . | . . . . Ramming 2 | . . 2 . Kinetic 492 | . 308 184 . Thermal 267 | . . 228 39 Explosive 1070 | . . 952 118 Electromagnetic 354 | . . . 354 Impact . | . . . . Slashing . | . . . . Piercing . | . . . . Highest Corruption 9 | . . 3 9 Average Corruption 7 | . . 3 7 Corruption Purged . | . . . . Effects 25 | . . . 25 Message Errors 4 | . . . 4 Matter Fused 6 | . . . 6 Heat Flow Errors 3 | . . . 3 Energy Discharges 3 | . . . 3 Data Loss (minor) 5 | . . . 5 Data Loss (major) 1 | . . . 1 Misfires 1 | . . . 1 Targeting Errors 2 | . . . 2 Overload Shots . | . . . . Overflow Damage 13 | . . 8 5 Projectiles . | . . . . Explosions 13 | . . 8 5 Melee . | . . . . Knockbacks . | . . . . Impact . | . . . . Kinetic . | . . . . Secondary . | . . . . Self-Inflicted Damage 179 | . . 128 51 Shots 8 | . . 6 2 Rammed . | . . . . Targets Rammed 1 | . . 1 . Kicked 1 | . . 1 . Crushed . | . . . . Highest Temperature 391 | . 22 391 324 Average Temperature 111 | . 10 127 112 Received Heat Transfer 552 | . 174 285 93 Effects 5 | . . 5 . Shutdowns 2 | . . 2 . Interference 3 | . . 3 . Siege Activations . | . . . . Robots Corrupted 1 | . . . 1 Combat Hostiles 1 | . . . 1 Parts Fried 1 | . . . 1 Impact Corruptions . | . . . . Robots Melted . | . . . . Combat Hostiles . | . . . . Parts Melted . | . . . . Heat Transferred 403 | . . 353 50 Parts Sabotaged . | . . . . Parts Stolen . | . . . . Parts Stripped . | . . . . Power Chain Reactions 1 | . . . 1 Missiles Intercepted . | . . . . Alert | -11 -10 -9 -9 ------- Run | Scr Mat Mat Sto Peak Influence 422 | . 195 422 286 Initial 89 | . . 15 89 Average 118 | . 102 156 115 Maximum Alert Level 2 | . . 2 1 Low Security (%) 81 | 100 100 70 73 Level 1 17 | . . 23 26 Level 2 1 | . . 6 . Level 3 . | . . . . Level 4 . | . . . . Level 5 . | . . . . High Security . | . . . . Max Security . | . . . . Squads Dispatched 6 | . 1 4 1 Investigation 1 | . . . 1 Extermination . | . . . . Reinforcement 5 | . 1 4 . Assault . | . . . . Garrison . | . . . . Intercept . | . . . . Construction Impeded 1 | . . 1 . Haulers Reinforced . | . . . . Stealth | -11 -10 -9 -9 --------- Run | Scr Mat Mat Sto Distress Signals 4 | . 1 2 1 Communications Jammed . | . . . . Distress Signals . | . . . . Times Spotted 51 | . 11 25 15 Peak Tracking Total 5 | . 3 5 4 Tactical Retreats 8 | . 4 3 1 Traps | -11 -10 -9 -9 ------- Run | Scr Mat Mat Sto Traps Triggered 1 | . . . 1 Indirectly . | . . . . Trap Hack Attempts . | . . . . Triggered . | . . . . Disarmed . | . . . . Reprogrammed . | . . . . Reused . | . . . . Traps Extracted . | . . . . Installed . | . . . . Triggered 1 | . . . 1 Machines | -11 -10 -9 -9 ---------- Run | Scr Mat Mat Sto Machines Disabled 2 | . . 1 1 Max in Single Turn 1 | . . 1 1 Machines Sabotaged . | . . . . Garrisons Compromised . | . . . . Overloaded Fab Kills . | . . . . Fab Network Shutdowns . | . . . . Hacking | -11 -10 -9 -9 --------- Run | Scr Mat Mat Sto Machines Accessed 3 | . 2 . 1 Terminals 3 | . 2 . 1 Fabricators . | . . . . Repair Stations . | . . . . Recycling Units . | . . . . Scanalyzers . | . . . . Garrison Access . | . . . . Total Hacks 6 | . 5 . 1 Successful 1 | . . . 1 Failed 5 | . 5 . . Catastrophic . | . . . . Database Lockouts . | . . . . Manual 2 | . 2 . . Terminals 6 | . 5 . 1 Fabricators . | . . . . Repair Stations . | . . . . Recycling Units . | . . . . Scanalyzers . | . . . . Garrison Access . | . . . . Terminal Hacks 1 | . . . 1 Open Door 1 | . . . 1 Fabricator Hacks . | . . . . Repair Station Hacks . | . . . . Recycling Unit Hacks . | . . . . Scanalyzer . | . . . . Garrison Access Hacks . | . . . . Unauthorized Hacks . | . . . . Terminals . | . . . . Fabricators . | . . . . Repair Stations . | . . . . Recycling Units . | . . . . Scanalyzers . | . . . . Garrison Access . | . . . . Data Cores Recovered . | . . . . Used . | . . . . Hacking Detections 2 | . 2 . . Full Trace Events . | . . . . Feedback Events . | . . . . Feedback Blocked . | . . . . Robot Schematics Acquired . | . . . . Robots Built . | . . . . Matter . | . . . . Time . | . . . . Total Robot Build Rating . | . . . . Part Schematics Acquired . | . . . . Parts Built . | . . . . Matter . | . . . . Time . | . . . . Total Part Build Rating . | . . . . Parts Repaired . | . . . . Time . | . . . . Parts Recycled . | . . . . Recycled Matter . | . . . . Retrieved Matter . | . . . . Retrieved Components . | . . . . Parts Scanalyzed . | . . . . Part Schematics Acquired . | . . . . Parts Damaged . | . . . . Bothacking | -11 -10 -9 -9 ------------ Run | Scr Mat Mat Sto Used RIF Installer . | . . . . Robots Hacked . | . . . . Non-combat . | . . . . Combat . | . . . . Robot Hacks Applied . | . . . . Relay Couplers Released . | . . . . Robots Rewired . | . . . . Allies Hacked . | . . . . Hacks Repelled . | . . . . Allies | -11 -10 -9 -9 -------- Run | Scr Mat Mat Sto Total Allies . | . . . . Largest Group . | . . . . Highest-Rated Group . | . . . . Highest-Rated Ally . | . . . . Total Orders 3 | . . . 3 EXPLORE 3 | . . . 3 Ally Attacks . | . . . . Total Damage . | . . . . Kills . | . . . . Allies Corrupted . | . . . . Allies Melted . | . . . . Intel | -11 -10 -9 -9 ------- Run | Scr Mat Mat Sto Robot Analysis Total . | . . . . Derelict Logs Recovered . | . . . . Drone Launches 4 | . . . 4 Drone Recoveries . | . . . . Exploration | -11 -10 -9 -9 ------------- Run | Scr Mat Mat Sto Turns Passed 1885 | 43 563 432 847 Spaces Moved 792 | 38 353 163 238 Core 3 | 2 . . 1 Treads . | . . . . Legs 659 | . 293 163 203 Wheels 96 | 36 60 . . Hover 34 | . . . 34 Flight . | . . . . Fastest Speed 50 | 50 90 120 116 Average Speed 137 | 86 123 142 161 Slowest Speed 650 | 90 180 150 650 Overloaded Moves . | . . . . Propulsion Burnouts . | . . . . Robots Hopped . | . . . . Cave-ins Triggered 1 | . . . 1 Exploration Rate (%) 30 | 3 64 20 35 Regions Visited 3 Branch Regions 1 Pre-discovered Areas . | . . . . Known Exits Taken . | . . . . Unknown Exits Taken 3 | 1 1 1 . Scrap Searched . | . . . . Spaces Dug . | . . . . Terrain Destroyed 98 | . . 68 30 Melee . | . . . . Projectile . | . . . . AOE 98 | . . 68 30 Terrain Rammed . | . . . . Walls Destroyed . | . . . . Machines Disabled . | . . . . Actions | -11 -10 -9 -9 --------- Run | Scr Mat Mat Sto Total 1451 | 45 431 311 664 Wait 500 | . 29 86 385 Move 789 | 37 352 162 238 Hop . | . . . . Pick Up 18 | 2 10 5 1 Fast Attach 25 | 5 4 8 8 Attach 7 | 1 . 4 2 Detach 1 | . . 1 . Swap 5 | . 2 2 1 Drop 20 | . 5 6 9 Fire 85 | . 29 36 20 Melee . | . . . . Ram . | . . . . Kick 1 | . . 1 . Crush . | . . . . Escape Stasis . | . . . . Rewire . | . . . . Trap . | . . . . Miscellaneous . | . . . . Route ------- -11/Scrapyard -10/Materials (discovered 3 exits: [*Mat x3]) -9/Materials -9/Storage History --------- Turn | Location | Event 11 | -11/Scrapyard | Discovered new exit (range 16) 44 | -11/Scrapyard | Entered Materials 235 | -10/Materials | Discovered new exit (range 8) 308 | -10/Materials | Build established: Mutant 500 | -10/Materials | Discovered new exit (range 8) 595 | -10/Materials | Discovered new exit (range 11) 607 | -10/Materials | Entered another Materials area 607 | -9/Materials | Evolved 2 slots: Power x2 866 | -9/Materials | Lost 4 parts (1p3w) 955 | -9/Materials | Discovered new exit (range 16) 979 | -9/Materials | Core integrity fell below 50% 1039 | -9/Materials | Entered Storage 1227 | -9/Storage | Found Prototype Launcher 1227 | -9/Storage | Identified Gui. Missile Launcher 1230 | -9/Storage | Found Gui. Missile Launcher 1271 | -9/Storage | Crushed by falling debris 1271 | -9/Storage | Core integrity fell below 20% 1302 | -9/Storage | Lost 3 parts (1n1u1w) 1886 | -9/Storage | Destroyed by G-34 Mercenary with Small Laser Last Messages --------------- 01752_ System corrupted: Heat flow error (+243). 01778_ System corrupted: Matter fused (-10). 01808_ System corrupted: Imp. EM Shotgun targeting data glitched. 01808_ S-10 Pest destroyed. 01809_ System corrupted: Matter fused (-9). 01811_ Imp. Aluminum Leg destroyed. 01814_ S-10 Pest destroyed. 01817_ Door malfunctions. 01820_ Acquired 15 matter. 01829_ Acquired 20 matter. 01834_ Acquired Lgt. Ion Engine. 01835_ Dropped Imp. Ion Engine. 01836_ U412X HNGM=D6KGFVRCFL=6LTHLVQDW1Z8PMD 01836_ Dropped Cld. Ion Engine. 01836_ Dropped EM Shotgun. 01839_ Acquired 20 matter. 01846_ Acquired 33 matter. 01856_ 0MHXKPIXKNSW 4Z >D4 C 01876_ Imp. EM Shotgun destroyed. 01880_ System corrupted: Matter fused (-8). Map ----- +----------------------------------------------------+ | ????????????###################+###### #???????? | | ????????????# % %% #???????? | | ????????????# ##### #???????? | | ????????????# #???# / ????? | | ????????????######+#########/###+#???# # ?? | | ??????????????# # #???# # | | ??????????????# """" # """" #???# #? | | ??????????????# ""??" # "??" #???# #??###### | | ??????????????# ""???" # "??" #??? ???????? | | ??????????????# "???"" # "??" #??? #??????? | | ??????????????# "??"" # "??" #??? #??????? | | ???????########*["""" # """" #??? #??????? | | ???????# #*[[[ # #??? #??????? | | ???????# ##/######## #???# ##??????? | | ???????# ##=#??????##########???? #???????? | | ???????# ## #???????????????????? #???????? | | ???????# ## ######## ???????? ????????? | | ???????# ## + """????????? ????????? | | ?????????###+### #####????????????????????????? | | ?????????## ## #????????????????????????????? | | ?????????## #????????????????????????????? | | ?????###### #######????????????????????????????? | | ????## ## ## # #??????????????????????????????? | | ????# ### # # ##################### ????????? | | ????# ]] ## #### ????????? | | ????##]] # ### @ Y ????????? | | ????## ] !+% ag ????????? | | ????####### ####/##############+### ????????? | | ????# ## ## ##????????????????????????? | | ????########!## """ ""#???????????????????????? | | ???????????# / """ ""????????????????????????? | | ???######### # """ T"#???????????????????????? | | ???# % !!!# # ""#???????????????????????? | | ???# !=%%+ + """ ""#???????????????????????? | | #### | =[!# # """ ###???????????????????????? | | #""######### # """ #?????????????????????????? | | ! + #?????????????????????????? | | #"""############### ####?????????????????????????? | | #####??????????????##????????????????????????????? | | ?????????????????????????????????????????????????? | | ?????????????????????????????????????????????????? | | ?????????????????????????????????????????????????? | | | | | | | | | | | | | | | | | +----------------------------------------------------+ Best States ------------- Heat Dissipation 28 Energy Generation 26 Energy Capacity 595 Matter Stores 300 Matter Capacity 300 Sight Range 16 Terrain Scan Density 10 Evasion (%) 42 Targeting Accuracy 5 Item Schematics ----------------- None Robot Schematics ------------------ None Fabricated ------------ Nothing Alien Tech Used ----------------- None Achievements -------------- None Challenges ------------ None Game ------ Seed ControlMissileSuperbattery Manual? 0 Play Time 00:13:51 Cumulative 138.3 hours Start 2021.04.12 @ 13:54:27 End 2021.04.12 @ 14:05:55 Sessions 1 Manual Loads 0 Difficulty Rogue Special Mode None Game No. 312 Rogue 159 Adventurer 148 Explorer 5 Win Type - Total 3 Types 3/0/0/0/0/0/0/0/0 Lore% 66 Gallery% 74 Achievement% 57 Wizard Run 0 Options --------- ASCII 0 Keyboard 0 Movement Numpad Keybinds 0 Fullscreen 1 Font 14/X11 Map View 84x54 Tactical HUD 1 Map Filters NONE Filters NONE Steam 1 RUN: 3bc8ea17-2820-4619-ae71-46870777d8c9